fUSD/lending_fUSD_20240121
["ID","MTS","AMOUNT","RATE_DAILY","PERIOD"]
[312372109,1705840251033,-283.045844,0.00031,7]
[312372110,1705840251041,-151.0,0.00031,7]
[312372111,1705840251051,-1246.646108,0.00031,7]
[312372112,1705840251061,-1246.646116,0.00031,7]
[312372113,1705840251070,-151.0,0.00031,7]
[312372114,1705840251079,-181.990085,0.00031,7]
[312372115,1705840251088,-181.990081,0.00031,7]
[312372116,1705840251098,-401.538742,0.00031,7]
[312372117,1705840251107,-401.538738,0.00031,7]
[312372118,1705840251116,-327.25914581,0.00031,7]
[312372119,1705840251126,-339.50523029,0.00031,4]
[312372120,1705840251136,-500.0,0.00031,3]
[312372121,1705840251146,-1803.64,0.00031506,2]
[312372122,1705840251155,-153.93,0.00031507,2]
[312372123,1705840251164,-179.64,0.00031507,2]
[312372124,1705840251173,-204.0,0.00031625,2]
[312372125,1705840251182,-198.0,0.00031644,2]
[312372126,1705840251192,-11477.52784109,0.00031673,7]
[312372127,1705840251200,-77690.86529261,0.000317,2]
[312372128,1705840251210,-150.0,0.00031723,2]
[312372129,1705840251219,-151.0,0.000318,7]
[312372130,1705840251228,-1184.821327,0.000318,7]
[312372131,1705840251237,-1184.821327,0.000318,7]
[312372132,1705840251246,-918.614584,0.000318,7]
[312372133,1705840251255,-918.614584,0.000318,7]
[312372134,1705840251265,-151.0,0.000318,7]
[312372135,1705840251274,-398014.666602,0.000318,3]
[312372136,1705840251283,-150.0,0.00031999,2]
[312372137,1705840251293,-150.0,0.00031999,2]
[312372138,1705840251302,-100000.0,0.00032,2]
[312372139,1705840251312,-100000.0,0.00032,2]
[312372140,1705840251321,-297.7852918,0.00032,4]
[312372141,1705840251330,-13066.62474655,0.00032,4]
[312372142,1705840251339,-57845.25117738,0.00032,2]
[312372143,1705840251348,-155.0,0.00032,2]
[312372144,1705840251358,-181.18217842,0.00032,20]
[312372145,1705840251368,-114096.11753527,0.00032,4]
[312372146,1705840251377,-151.0,0.00032073,7]
[312372147,1705840251387,-1184.821327,0.00032073,7]
[312372148,1705840251396,-1184.8213265,0.00032073,7]
[312372149,1705840251405,-918.614584,0.00032073,7]
[312372150,1705840251415,-918.614577,0.00032073,7]
[312372151,1705840251425,-50000.0,0.00032073,7]
[312372152,1705840251435,-12779.0254745,0.00032073,7]
[312372153,1705840251444,-153.93,0.00032192,2]
[312372154,1705840251454,-14445.75646571,0.00032367,7]
[312372155,1705840251464,-461.0,0.000324,5]
[312372156,1705840251473,-16011.67210009,0.00032432,7]
[312372157,1705840251482,-657.81618824,0.000325,2]
[312372158,1705840251492,-11274.88091189,0.000325,2]
[312372159,1705840251501,-150.0,0.00032516,2]
[312372160,1705840251511,-155.0,0.00032672,4]
[312372161,1705840251521,-503.4,0.00032713,2]
[312372162,1705840251530,-357.91955435,0.00032876,2]
[312372163,1705840251539,-381.05161379,0.00032876,7]
[312372164,1705840251548,-300.0,0.00032876,7]
[312372165,1705840251558,-220.47646819,0.00032876,7]
[312372166,1705840251567,-500.0,0.00032876,7]
[312372167,1705840251576,-500.0,0.00032876,7]
[312372168,1705840251585,-500.0,0.00032876,7]
[312372169,1705840251594,-500.0,0.00032876,7]
[312372170,1705840251604,-500.0,0.00032876,7]
[312372171,1705840251613,-500.0,0.00032876,7]
[312372172,1705840251622,-500.0,0.00032876,7]
[312372173,1705840251632,-500.0,0.00032876,7]
[312372174,1705840251641,-500.0,0.00032876,7]
[312372175,1705840251651,-500.0,0.00032876,7]
[312372176,1705840251660,-500.0,0.00032876,7]
[312372177,1705840251669,-444.01795531,0.00032876,7]
[312372178,1705840251680,-500.0,0.00032876,7]
[312372179,1705840251689,-500.0,0.00032876,7]
[312372180,1705840251699,-500.0,0.00032876,7]
[312372181,1705840251709,-471.82845568,0.00032876,7]
[312372182,1705840251718,-161.700933,0.00032876,7]
[312372183,1705840251728,-1803.64,0.00032876,2]
[312372184,1705840251738,-300.0,0.00032876,7]
[312372185,1705840251747,-500.0,0.00032876,7]
[312372186,1705840251757,-636.09732567,0.00032876,7]
[312372187,1705840251766,-327.21946513,0.00032876,7]
[312372188,1705840251776,-153.93,0.00032877,2]
[312372189,1705840251785,-402.91,0.00032877,15]
[312372190,1705840251795,-17781.80818242,0.00032896,8]
[312372191,1705840251804,-100000.0,0.00033,3]
[312372192,1705840251814,-155.0,0.00033,4]
[312372193,1705840251823,-50000.0,0.00033,4]
[312372194,1705840251833,-550.0,0.00033,3]
[312372195,1705840251842,-231.9,0.00033134,2]
[312372196,1705840251851,-500.0,0.0003315,15]
[312372197,1705840251861,-505.90848634,0.0003315,16]
[312372198,1705840251870,-150.0,0.00033309,2]
[312372199,1705840251880,-1001.0,0.000335,3]
[312372200,1705840251894,-153.93,0.00033562,2]
[312372201,1705840251903,-496.6,0.00033631,2]
[312372202,1705840251912,-1000.0,0.00033632,7]
[312372203,1705840251921,-1000.0,0.00033632,7]
[312372204,1705840251930,-155.98566765,0.0003375,2]
[312372205,1705840251940,-1000.0,0.0003393,7]
[312372206,1705840251950,-1000.0,0.0003393,7]
[312372207,1705840251960,-1000.0,0.0003393,7]
[312372208,1705840251970,-100000.0,0.00034,4]
[312372209,1705840251981,-500.0,0.00034,2]
[312372210,1705840251990,-1000.0,0.00034,4]
[312372211,1705840251999,-4314.31993024,0.00034,2]
[312372212,1705840252009,-5050.98472317,0.00034,2]
[312372213,1705840252019,-202906.11184098,0.00034,2]
[312372214,1705840252028,-1003.0,0.00034,4]
[312372215,1705840252038,-155.28384592,0.00034,4]
[312372216,1705840252047,-506.48212579,0.00034,4]
[312372217,1705840252057,-616.41231495,0.00034,2]
[312372218,1705840252066,-1431.15428558,0.00034,30]
[312372219,1705840252075,-1500.0,0.0003409,2]
[312372220,1705840252084,-1500.0,0.0003409,2]
[312372221,1705840252094,-1500.0,0.0003409,2]
[312372222,1705840252103,-1500.0,0.0003409,2]
[312372223,1705840252112,-1500.0,0.0003409,2]
[312372224,1705840252122,-1500.0,0.0003409,2]
[312372225,1705840252133,-1500.0,0.0003409,2]
[312372226,1705840252143,-1500.0,0.0003409,2]
[312372227,1705840252153,-1500.0,0.0003409,2]
[312372228,1705840252163,-1500.0,0.0003409,2]
[312372229,1705840252173,-1500.0,0.0003409,2]
[312372230,1705840252185,-1500.0,0.0003409,2]
[312372231,1705840252194,-1500.0,0.0003409,2]
[312372232,1705840252204,-1500.0,0.0003409,2]
[312372233,1705840252214,-1558.0,0.0003409,2]
[312372234,1705840252223,-1500.0,0.0003409,2]
[312372235,1705840252232,-1500.0,0.0003409,2]
[312372236,1705840252241,-1500.0,0.0003409,2]
[312372237,1705840252251,-1500.0,0.0003409,2]
[312372238,1705840252260,-1500.0,0.0003409,2]
[312372239,1705840252270,-1500.0,0.0003409,2]
[312372240,1705840252279,-1500.0,0.0003409,2]
[312372241,1705840252288,-1500.0,0.0003409,2]
[312372242,1705840252297,-1500.0,0.0003409,2]
[312372243,1705840252307,-1500.0,0.0003409,2]
[312372244,1705840252316,-1500.0,0.0003409,2]
[312372245,1705840252325,-1500.0,0.0003409,2]
[312372246,1705840252334,-500.0,0.0003409,2]
[312372247,1705840252344,-1000.0,0.0003409,2]
[312372248,1705840252353,-1000.0,0.0003409,2]
[312372249,1705840252363,-1000.0,0.0003409,2]
[312372250,1705840252372,-1000.0,0.0003409,2]
[312372251,1705840252381,-1000.0,0.0003409,2]
[312372252,1705840252391,-1000.0,0.0003409,2]
[312372253,1705840252401,-1000.0,0.0003409,2]
[312372254,1705840252410,-1000.0,0.0003409,2]
[312372255,1705840252420,-1000.0,0.0003409,2]
[312372256,1705840252429,-1000.0,0.0003409,2]
[312372257,1705840252439,-1000.0,0.0003409,2]
[312372258,1705840252449,-1000.0,0.0003409,2]
[312372259,1705840252459,-1000.0,0.0003409,2]
[312372260,1705840252468,-1000.0,0.0003409,2]
[312372261,1705840252477,-1000.0,0.0003409,2]
[312372262,1705840252487,-1000.0,0.0003409,2]
[312372263,1705840252496,-150.0,0.00034102,2]
[312372264,1705840252505,-4015.0,0.00034135,30]
[312372265,1705840252515,-4015.0,0.00034135,60]
[312372266,1705840252524,-1000.0,0.00034178,7]
[312372267,1705840252534,-1000.0,0.00034178,7]
[312372268,1705840252543,-1000.0,0.00034178,7]
[312372269,1705840252553,-1000.0,0.000342,2]
[312372270,1705840252563,-1803.64,0.00034246,2]
[312372271,1705840252572,-666.0,0.00034246,2]
[312372272,1705840252582,-153.93,0.00034247,2]
[312372273,1705840252593,-72212.7027,0.000344,7]
[312372274,1705840252723,-207.0,0.00034435,21]
[312372275,1705840252732,-3000.0,0.00034487,2]
[312372276,1705840252742,-433.9656394,0.00034487,2]
[312372277,1705840252751,-4425.51274453,0.000345,2]
[312372278,1705840252760,-159.24259378,0.00034501,2]
[312372279,1705840252769,-150.0,0.00034627,2]
[312372280,1705840252779,-6850.29089009,0.0003465,2]
[312372281,1705840252788,-179.64,0.00034703,2]
[312372282,1705840252797,-150.0,0.00034797,2]
[312372283,1705840252807,-1500.0,0.00034862,2]
[312372284,1705840252817,-438992.05950742,0.00034888,2]
[312372285,1705840252826,-150.0,0.00034895,2]
[312372286,1705840252835,-8961.38344061,0.000349,4]
[312372287,1705840252845,-300.0,0.000349,12]
[312372288,1705840252854,-1024.55636201,0.000349,2]
[312372289,1705840252863,-1024.55636188,0.000349,2]
[312372290,1705840252873,-1024.55636188,0.000349,2]
[312372291,1705840252883,-1024.55636188,0.000349,2]
[312372292,1705840252895,-1024.55636188,0.000349,2]
[312372293,1705840252904,-1024.55636188,0.000349,2]
[312372294,1705840252914,-1024.55636188,0.000349,2]
[312372295,1705840252923,-1024.55636188,0.000349,2]
[312372296,1705840252933,-150.0,0.00034902,2]
[312372297,1705840252943,-150.0,0.00034914,2]
[312372298,1705840252953,-150.0,0.00034918,2]
[312372299,1705840252963,-153.93,0.00034932,2]
[312372300,1705840252972,-150.0,0.00034934,2]
[312372301,1705840252981,-1500.0,0.00034967,2]
[312372302,1705840252991,-1500.0,0.00034976,2]
[312372303,1705840253000,-571.20350457,0.0003498,3]
[312372304,1705840253010,-3112.33275393,0.0003498,14]
[312372305,1705840253019,-300.0,0.00034987,7]
[312372306,1705840253029,-200.0,0.0003499,7]
[312372307,1705840253039,-200.0,0.0003499,7]
[312372308,1705840253048,-150.0,0.00034999,2]
[312372309,1705840253057,-150.0,0.00034999,2]
[312372310,1705840253067,-100000.0,0.00035,5]
[312372311,1705840253076,-13459.45226643,0.00035,4]
[312372312,1705840253085,-5000.0,0.00035,2]
[312372313,1705840253094,-15747.42472386,0.00035,7]
[312372314,1705840253103,-155.0,0.00035,2]
[312372315,1705840253112,-8000.0,0.00035,2]
[312372316,1705840253121,-176098.93209565,0.00035,5]
[312372317,1705840253131,-500.0,0.00035,10]
[312372318,1705840253140,-2000.0,0.00035,2]
[312372319,1705840253149,-2000.0,0.00035,2]
[312372320,1705840253158,-2000.0,0.00035,2]
[312372321,1705840253168,-1110.36736411,0.00035,3]
[312372322,1705840253177,-191.35376274,0.00035,2]
[312372323,1705840253187,-4890.0,0.00035,5]
[312372324,1705840253198,-174000.0,0.00035,3]
[312372325,1705840253208,-2423.34492884,0.00035,2]
[312372326,1705840253217,-20000.0,0.00035,20]
[312372327,1705840253226,-1236.3018017,0.00035,30]
[312372328,1705840253236,-451.958643,0.00035,5]
[312372329,1705840253245,-399.0,0.00035,2]
[312372330,1705840253255,-178.59530419,0.00035,2]
[312372331,1705840253264,-342.1133668,0.00035,7]
[312372332,1705840253274,-600.0,0.00035,3]
[312372333,1705840253283,-831.8,0.00035,4]
[312372334,1705840253292,-182.24900239,0.00035,2]
[312372335,1705840253301,-1000.0,0.00035,2]
[312372336,1705840253311,-70091.64058327,0.00035,6]
[312372337,1705840253320,-150832.73775988,0.00035,14]
[312372338,1705840253329,-57577.26,0.00035,3]
[312372339,1705840253339,-155.9069348,0.00035001,5]
[312372340,1705840253349,-152.0,0.00035005,3]
[312372341,1705840253358,-150.0,0.00035018,2]
[312372342,1705840253368,-450.0,0.0003502,3]
[312372343,1705840253380,-150.0,0.00035028,2]
[312372344,1705840253390,-300.0,0.00035038,2]
[312372345,1705840253401,-300.0,0.00035039,2]
[312372346,1705840253410,-1500.0,0.00035059,2]
[312372347,1705840253421,-1500.0,0.00035066,2]
[312372348,1705840253431,-1500.0,0.00035083,2]
[312372349,1705840253440,-150.0,0.00035088,2]
[312372350,1705840253451,-150.0,0.0003509,2]
[312372351,1705840253461,-150.0,0.00035093,2]
[312372352,1705840253471,-150.0,0.00035112,2]
[312372353,1705840253481,-150.0,0.00035121,2]
[312372354,1705840253490,-150.0,0.00035128,2]
[312372355,1705840253501,-150.0,0.00035134,2]
[312372356,1705840253512,-150.0576542,0.00035135,30]
[312372357,1705840253521,-150.0,0.00035136,2]
[312372358,1705840253530,-150.0,0.00035144,2]
[312372359,1705840253541,-150.0,0.00035144,2]
[312372360,1705840253551,-150.0,0.00035165,2]
[312372361,1705840253560,-150.0,0.00035178,2]
[312372362,1705840253569,-150.0,0.0003518,2]
[312372363,1705840253579,-150.0,0.00035186,2]
[312372364,1705840253588,-150.0,0.00035191,2]
[312372365,1705840253597,-150.0,0.00035196,2]
[312372366,1705840253606,-150.0,0.000352,2]
[312372367,1705840253616,-150.0,0.00035206,2]
[312372368,1705840253626,-2417.20143249,0.00035213,2]
[312372369,1705840253636,-150.0,0.00035218,2]
[312372370,1705840253647,-1500.0,0.00035225,2]
[312372371,1705840253657,-150.0,0.00035227,2]
[312372372,1705840253666,-150.0,0.00035238,2]
[312372373,1705840253677,-150.0,0.0003526,2]
[312372374,1705840253687,-150.0,0.00035264,2]
[312372375,1705840253696,-152.21561067,0.00035266,2]
[312372376,1705840253706,-1500.0,0.00035268,2]
[312372377,1705840253716,-150.0,0.00035274,2]
[312372378,1705840253725,-150.0,0.00035276,2]
[312372379,1705840253735,-150.0,0.00035284,2]
[312372380,1705840253745,-150.0,0.00035297,2]
[312372381,1705840253755,-500.0,0.000353,7]
[312372382,1705840253764,-150.0,0.00035303,2]
[312372383,1705840253774,-150.0,0.00035303,2]
[312372384,1705840253784,-150.0,0.00035328,2]
[312372385,1705840253793,-236.22425785,0.00035339,2]
[312372386,1705840253802,-150.0,0.00035341,2]
[312372387,1705840253811,-150.0,0.00035343,2]
[312372388,1705840253821,-1500.0,0.0003535,2]
[312372389,1705840253830,-150.0,0.00035352,2]
[312372390,1705840253841,-300.0,0.00035354,2]
[312372391,1705840253850,-150.0,0.00035364,2]
[312372392,1705840253859,-150.0,0.0003537,2]
[312372393,1705840253868,-1004.36194898,0.00035374,3]
[312372394,1705840253877,-150.0,0.00035379,2]
[312372395,1705840253888,-300.0,0.00035382,2]
[312372396,1705840253898,-10033.15926873,0.00035383,2]
[312372397,1705840253907,-150.0,0.00035383,2]
[312372398,1705840253917,-1149.98511033,0.0003539,3]
[312372399,1705840253926,-150.0,0.0003539,2]
[312372400,1705840253935,-1127.78314196,0.00035391,3]
[312372401,1705840253946,-231.9,0.00035398,2]
[312372402,1705840253955,-1058.64768176,0.00035399,3]
[312372403,1705840253968,-1140.81340979,0.00035399,3]
[312372404,1705840253977,-1447.9003588,0.000354,2]
[312372405,1705840253987,-1053.13253763,0.00035403,3]
[312372406,1705840253997,-1038.79416326,0.00035403,3]
[312372407,1705840254006,-1037.22333419,0.00035403,3]
[312372408,1705840254015,-1500.0,0.00035432,2]
[312372409,1705840254024,-150.0,0.00035433,2]
[312372410,1705840254034,-150.0,0.00035447,2]
[312372411,1705840254043,-471.91889419,0.00035451,2]
[312372412,1705840254053,-150.0,0.00035459,2]
[312372413,1705840254062,-150.0,0.00035463,2]
[312372414,1705840254071,-1500.0,0.00035464,2]
[312372415,1705840254081,-150.0,0.00035474,2]
[312372416,1705840254090,-1000.0,0.00035475,7]
[312372417,1705840254100,-1000.0,0.00035475,7]
[312372418,1705840254109,-1000.0,0.00035475,7]
[312372419,1705840254119,-272.05871098,0.00035475,5]
[312372420,1705840254129,-9950.19507919,0.00035475,5]
[312372421,1705840254139,-361.13747071,0.00035475,5]
[312372422,1705840254148,-411.89814255,0.00035475,5]
[312372423,1705840254157,-1000.0,0.00035475,7]
[312372424,1705840254166,-1000.0,0.00035475,7]
[312372425,1705840254176,-11996.23307263,0.00035475,6]
[312372426,1705840254185,-443.63901554,0.00035475,5]
[312372427,1705840254195,-2319.76918392,0.00035475,5]
[312372428,1705840254204,-4335.24968757,0.00035475,6]
[312372429,1705840254213,-283.46485384,0.00035475,5]
[312372430,1705840254222,-4549.09669398,0.00035475,6]
[312372431,1705840254231,-245.48194392,0.00035475,5]
[312372432,1705840254241,-245.48194392,0.00035475,5]
[312372433,1705840254250,-150.0,0.0003548,2]
[312372434,1705840254259,-151.0121,0.00035498,6]
[312372435,1705840254268,-105000.07094849,0.00035499,2]
[312372436,1705840254278,-3268.21,0.000355,15]
[312372437,1705840254287,-160158.0,0.000355,2]
[312372438,1705840254296,-20000.0,0.000355,20]
[312372439,1705840254305,-1024.51,0.000355,15]
[312372440,1705840254313,-2000.0,0.000355,4]
[312372441,1705840254323,-300.0,0.00035512,2]
[312372442,1705840254332,-300.0,0.00035524,2]
[312372443,1705840254341,-150.0,0.00035526,2]
[312372444,1705840254349,-1024.55636188,0.00035531,2]
[312372445,1705840254358,-150.0,0.00035535,2]
[312372446,1705840254368,-1500.0,0.00035537,2]
[312372447,1705840254377,-300.0,0.00035537,2]
[312372448,1705840254385,-150.0,0.00035541,2]
[312372449,1705840254395,-150.0,0.00035545,2]
[312372450,1705840254404,-1500.0,0.00035547,2]
[312372451,1705840254413,-1528.67496672,0.00035548,2]
[312372452,1705840254422,-150.0,0.00035552,2]
[312372453,1705840254432,-300.0,0.00035554,2]
[312372454,1705840254441,-150.0,0.0003556,2]
[312372455,1705840254450,-1500.0,0.00035561,2]
[312372456,1705840254460,-150.0,0.00035565,2]
[312372457,1705840254469,-150.0,0.00035567,2]
[312372458,1705840254478,-1080.62404751,0.00035576,3]
[312372459,1705840254487,-1050.88715476,0.00035576,3]
[312372460,1705840254496,-150.0,0.00035576,2]
[312372461,1705840254506,-150.0,0.0003558,3]
[312372462,1705840254515,-300.0,0.00035581,2]
[312372463,1705840254524,-1184.86001012,0.0003559,2]
[312372464,1705840254533,-150.0,0.0003559,2]
[312372465,1705840254543,-150.0,0.00035599,2]
[312372466,1705840254552,-1984.77,0.000356,12]
[312372467,1705840254679,-150.0,0.00035601,2]
[312372468,1705840254688,-500.0,0.00035616,5]
[312372469,1705840254698,-1803.64,0.00035616,2]
[312372470,1705840254707,-154.90514885,0.00035616,7]
[312372471,1705840254717,-188.61581781,0.00035616,7]
[312372472,1705840254727,-161.41009681,0.00035616,7]
[312372473,1705840254736,-153.93,0.00035616,2]
[312372474,1705840254746,-150.0,0.00035666,2]
[312372475,1705840254755,-150.0,0.00035688,2]
[312372476,1705840254764,-789.45829141,0.00035689,2]
[312372477,1705840254773,-150.0,0.00035695,2]
[312372478,1705840254782,-502.502863,0.000357,2]
[312372479,1705840254791,-506.66,0.000357,3]
[312372480,1705840254801,-506.66,0.000357,3]
[312372481,1705840254810,-506.66,0.000357,3]
[312372482,1705840254820,-506.66,0.000357,3]
[312372483,1705840254829,-506.66,0.000357,3]
[312372484,1705840254838,-506.66,0.000357,3]
[312372485,1705840254848,-506.66,0.000357,3]
[312372486,1705840254857,-506.66,0.000357,3]
[312372487,1705840254866,-506.66,0.000357,3]
[312372488,1705840254875,-506.66,0.000357,3]
[312372489,1705840254886,-506.66,0.000357,3]
[312372490,1705840254896,-506.66,0.000357,3]
[312372491,1705840254905,-506.66,0.000357,3]
[312372492,1705840254915,-506.66,0.000357,3]
[312372493,1705840254924,-506.66,0.000357,3]
[312372494,1705840254934,-506.66,0.000357,3]
[312372495,1705840254943,-506.66,0.000357,3]
[312372496,1705840254952,-506.66,0.000357,3]
[312372497,1705840254962,-506.66,0.000357,3]
[312372498,1705840254972,-506.66,0.000357,3]
[312372499,1705840254981,-150.0,0.00035703,2]
[312372500,1705840254991,-150.0,0.00035714,2]
[312372501,1705840255000,-150.0,0.00035715,2]
[312372502,1705840255009,-300.0,0.00035716,2]
[312372503,1705840255018,-150.0,0.00035717,2]
[312372504,1705840255028,-150.0,0.00035721,2]
[312372505,1705840255038,-150.0,0.00035752,2]
[312372506,1705840255047,-1500.0,0.00035762,2]
[312372507,1705840255057,-150.0,0.00035787,2]
[312372508,1705840255066,-150.0,0.00035789,2]
[312372509,1705840255076,-150.0,0.00035791,2]
[312372510,1705840255085,-150.0,0.00035796,2]
[312372511,1705840255094,-151.0121,0.00035798,6]
[312372512,1705840255103,-150.0,0.00035798,2]
[312372513,1705840255113,-150.0,0.00035799,2]
[312372514,1705840255122,-269.72,0.000358,7]
[312372515,1705840255131,-1326.54,0.000358,7]
[312372516,1705840255140,-544.3,0.000358,7]
[312372517,1705840255149,-150.0,0.00035808,2]
[312372518,1705840255159,-150.0,0.0003581,2]
[312372519,1705840255168,-150.0,0.00035828,2]
[312372520,1705840255177,-150.0,0.00035831,2]
[312372521,1705840255186,-150.0,0.00035839,2]
[312372522,1705840255195,-150.0,0.00035841,2]
[312372523,1705840255204,-150.0,0.00035841,2]
[312372524,1705840255214,-150.0,0.00035862,2]
[312372525,1705840255223,-150.0,0.00035876,2]
[312372526,1705840255232,-150.0,0.00035877,2]
[312372527,1705840255242,-150.0,0.00035877,2]
[312372528,1705840255251,-150.0,0.00035884,2]
[312372529,1705840255261,-535.8612713,0.0003589,6]
[312372530,1705840255270,-150.0,0.00035893,2]
[312372531,1705840255278,-1000.0,0.000359,2]
[312372532,1705840255288,-1000.0,0.000359,3]
[312372533,1705840255297,-1000.0,0.000359,4]
[312372534,1705840255306,-4993.34290459,0.000359,10]
[312372535,1705840255315,-635.77,0.000359,2]
[312372536,1705840255324,-150.0,0.00035909,2]
[312372537,1705840255334,-300000.0,0.0003591,2]
[312372538,1705840255343,-90520.04199876,0.0003591,2]
[312372539,1705840255352,-156.77475472,0.00035915,4]
[312372540,1705840255361,-340.27553003,0.00035915,4]
[312372541,1705840255371,-150.0,0.00035917,2]
[312372542,1705840255380,-157.59677842,0.0003592,4]
[312372543,1705840255389,-150.0,0.0003592,2]
[312372544,1705840255398,-150.0,0.00035923,2]
[312372545,1705840255407,-150.0,0.00035926,2]
[312372546,1705840255416,-150.0,0.00035936,2]
[312372547,1705840255426,-151.0,0.00035937,7]
[312372548,1705840255435,-150.0,0.00035937,7]
[312372549,1705840255445,-160.0,0.00035937,7]
[312372550,1705840255454,-150.0,0.00035958,2]
[312372551,1705840255465,-150.0,0.00035959,2]
[312372552,1705840255473,-176.67396009,0.00035959,2]
[312372553,1705840255484,-150.0,0.00035966,2]
[312372554,1705840255493,-304.99751768,0.00035982,2]
[312372555,1705840255502,-200.0,0.00035987,15]
[312372556,1705840255511,-300.0,0.00035989,2]
[312372557,1705840255521,-200.0,0.0003599,7]
[312372558,1705840255530,-100000.0,0.00036,6]
[312372559,1705840255539,-20000.0,0.00036,6]
[312372560,1705840255549,-2286.4079294,0.00036,2]
[312372561,1705840255558,-200.0,0.00036,30]
[312372562,1705840255567,-1592.49,0.00036,30]
[312372563,1705840255576,-427311.35999402,0.00036,7]
[312372564,1705840255586,-152.43,0.00036,2]
[312372565,1705840255595,-589.85698569,0.00036,8]
[312372566,1705840255605,-789.82,0.00036,2]
[312372567,1705840255614,-2607.2074153,0.00036,4]
[312372568,1705840255623,-20000.0,0.00036,20]
[312372569,1705840255633,-2000.0,0.00036,4]
[312372570,1705840255642,-2184.066812,0.00036,20]
[312372571,1705840255651,-172.0,0.00036,2]
[312372572,1705840255660,-150.0,0.00036009,2]
[312372573,1705840255669,-1500.0,0.00036015,2]
[312372574,1705840255679,-1500.0,0.00036017,2]
[312372575,1705840255688,-150.0,0.00036024,120]
[312372576,1705840255698,-150.0,0.00036028,2]
[312372577,1705840255707,-150.0,0.00036035,2]
[312372578,1705840255716,-150.0,0.00036038,2]
[312372579,1705840255725,-150.0,0.00036045,2]
[312372580,1705840255734,-150.0,0.00036045,2]
[312372581,1705840255744,-400.0,0.0003607,2]
[312372582,1705840255753,-501.06357879,0.0003607,2]
[312372583,1705840255762,-150.0,0.00036078,2]
[312372584,1705840255771,-1500.0,0.00036096,2]
[312372585,1705840255781,-218.59762,0.000361,25]
[312372586,1705840255791,-502.780568,0.000361,3]
[312372587,1705840255800,-200.0,0.000361,2]
[312372588,1705840255809,-150.0,0.000361,2]
[312372589,1705840255823,-150.0,0.00036109,2]
[312372590,1705840255832,-4251.0,0.00036112,30]
[312372591,1705840255841,-300.0,0.00036113,30]
[312372592,1705840255851,-150.0,0.00036114,2]
[312372593,1705840255860,-2000.0,0.00036115,2]
[312372594,1705840255869,-200.0,0.00036115,2]
[312372595,1705840255880,-150.0,0.00036115,2]
[312372596,1705840255896,-24079.51361024,0.0003612,30]
[312372597,1705840255906,-150.0,0.00036121,4]
[312372598,1705840255916,-150.0,0.00036122,2]
[312372599,1705840255926,-150.0,0.00036126,2]
[312372600,1705840255937,-500.0,0.00036164,7]
[312372601,1705840255946,-150.0,0.00036175,2]
[312372602,1705840255956,-150.0,0.00036194,2]
[312372603,1705840255966,-151.0121,0.00036198,6]
[312372604,1705840255978,-232.16511433,0.000362,4]
[312372605,1705840255988,-150.0,0.00036205,2]
[312372606,1705840255997,-300.0,0.00036214,2]
[312372607,1705840256006,-150.0,0.00036222,2]
[312372608,1705840256016,-150.0,0.0003624,2]